fUST/lending_fUST_20240824
["ID","MTS","AMOUNT","RATE_DAILY","PERIOD"]
[335729738,1724466647918,-3238.93,0.00013698,2]
[335729739,1724466647927,-894.63,0.00013698,2]
[335729740,1724466647937,-668.27,0.00013698,2]
[335729741,1724466647947,-500.0,0.00013698,2]
[335729742,1724466647955,-500.0,0.00013698,2]
[335729743,1724466647966,-4811.48,0.00013698,2]
[335729744,1724466647975,-776.69,0.00013698,2]
[335729745,1724466647984,-6847.5,0.00013698,2]
[335729746,1724466647994,-500.37040333,0.00013698,2]
[335729747,1724466648004,-500.0,0.00013698,2]
[335729748,1724466648013,-572.82,0.00013698,2]
[335729749,1724466648023,-670.93,0.00013698,2]
[335729750,1724466648032,-737.25,0.00013698,2]
[335729751,1724466648041,-500.0,0.00013698,2]
[335729752,1724466648052,-592.03,0.00013698,2]
[335729753,1724466648062,-500.0,0.00013698,2]
[335729754,1724466648071,-760.06,0.00013698,2]
[335729755,1724466648081,-500.0,0.00013698,2]
[335729756,1724466648091,-1566.59,0.00013698,2]
[335729757,1724466648100,-1183.75,0.00013698,2]
[335729758,1724466648110,-500.0,0.00013698,2]
[335729759,1724466648119,-6148.89,0.00013698,2]
[335729760,1724466648128,-1050.21,0.00013698,2]
[335729761,1724466648138,-862.93,0.00013698,2]
[335729762,1724466648148,-726.08,0.00013698,2]
[335729763,1724466648157,-885.12,0.00013698,2]
[335729764,1724466648166,-500.0,0.00013698,2]
[335729765,1724466648176,-500.0,0.00013698,2]
[335729766,1724466648186,-500.0,0.00013698,2]
[335729767,1724466648195,-3966.1,0.00013698,2]
[335729768,1724466648204,-500.0,0.00013698,2]
[335729769,1724466648213,-679.55,0.00013698,2]
[335729770,1724466648222,-523.48,0.00013698,2]
[335729771,1724466648231,-547.92,0.00013698,2]
[335729772,1724466648241,-3544.45,0.00013698,2]
[335729773,1724466648250,-500.0,0.00013698,2]
[335729774,1724466648259,-500.0,0.00013698,2]
[335729775,1724466648270,-7930.45,0.00013698,2]
[335729776,1724466648279,-500.0,0.00013698,2]
[335729777,1724466648288,-503.4434288,0.00013698,2]
[335729778,1724466648297,-2073.62,0.00013698,2]
[335729779,1724466648307,-297.52832699,0.00013698,2]
[335729780,1724466648317,-500.0,0.00013698,2]
[335729781,1724466648326,-4669.51,0.00013698,2]
[335729782,1724466648336,-500.0,0.00013698,2]
[335729783,1724466648349,-1061.48,0.00013698,2]
[335729784,1724466648358,-500.0,0.00013698,2]
[335729785,1724466648367,-500.0,0.00013698,2]
[335729786,1724466648377,-10604.79,0.00013698,2]
[335729787,1724466648386,-829.99,0.00013698,2]
[335729788,1724466648395,-500.0,0.00013698,2]
[335729789,1724466648404,-500.0,0.00013698,2]
[335729790,1724466648414,-1368.62,0.00013698,2]
[335729791,1724466648424,-779.54,0.00013698,2]
[335729792,1724466648433,-500.0,0.00013698,2]
[335729793,1724466648443,-1202.53,0.00013698,2]
[335729794,1724466648452,-315.43926399,0.00013698,2]
[335729795,1724466648462,-1192.23,0.00013698,2]
[335729796,1724466648471,-5154.78,0.00013698,2]
[335729797,1724466648481,-823.45,0.00013698,2]
[335729798,1724466648490,-500.0,0.00013698,2]
[335729799,1724466648500,-500.0,0.00013698,2]
[335729800,1724466648509,-627.15,0.00013698,2]
[335729801,1724466648519,-500.0,0.00013698,2]
[335729802,1724466648529,-500.0,0.00013698,2]
[335729803,1724466648539,-500.0,0.00013698,2]
[335729804,1724466648548,-1103.19,0.00013698,2]
[335729805,1724466648558,-848.26,0.00013698,2]
[335729806,1724466648567,-500.0,0.00013698,2]
[335729807,1724466648577,-5798.0,0.00013698,2]
[335729808,1724466648586,-500.0,0.00013698,2]
[335729809,1724466648596,-1705.15,0.00013698,2]
[335729810,1724466648605,-500.0,0.00013698,2]
[335729811,1724466648615,-506.11145161,0.00013698,2]
[335729812,1724466648624,-839.58,0.00013698,2]
[335729813,1724466648633,-591.76,0.00013698,2]
[335729814,1724466648642,-787.95,0.00013698,2]
[335729815,1724466648803,-500.0,0.00013698,2]
[335729816,1724466648814,-3747.84,0.00013698,2]
[335729817,1724466648824,-2250.76,0.00013698,2]
[335729818,1724466648834,-500.0,0.00013698,2]
[335729819,1724466648843,-500.0,0.00013698,2]
[335729820,1724466648854,-500.0,0.00013698,2]
[335729821,1724466648863,-405.56100338,0.00013698,2]
[335729822,1724466648873,-152.88663537,0.00013698,2]
[335729823,1724466648883,-946.66,0.00013698,2]
[335729824,1724466648893,-500.0,0.00013698,2]
[335729825,1724466648903,-730.45,0.00013698,2]
[335729826,1724466648913,-630.92,0.00013698,2]
[335729827,1724466648923,-500.0,0.00013698,2]
[335729828,1724466648933,-659.9,0.00013698,2]
[335729829,1724466648943,-500.0,0.00013698,2]
[335729830,1724466648953,-2516.15,0.00013698,2]
[335729831,1724466648964,-500.0,0.00013698,2]
[335729832,1724466648973,-613.69,0.00013698,2]
[335729833,1724466648983,-7039.85,0.00013698,2]
[335729834,1724466648992,-739.81,0.00013698,2]
[335729835,1724466649002,-1911.86,0.00013698,2]
[335729836,1724466649011,-941.73,0.00013698,2]
[335729837,1724466649021,-631.8,0.00013698,2]
[335729838,1724466649030,-10332.39,0.00013698,2]
[335729839,1724466649040,-1082.27,0.00013698,2]
[335729840,1724466649049,-602.76,0.00013698,2]
[335729841,1724466649058,-500.0,0.00013698,2]
[335729842,1724466649068,-1319.052251,0.00013698,2]
[335729843,1724466649078,-260.3008643,0.00013698,2]
[335729844,1724466649087,-500.0,0.00013698,2]
[335729845,1724466649096,-500.0,0.00013698,2]
[335729846,1724466649105,-1319.052251,0.00013698,2]
[335729847,1724466649114,-688.77,0.00013698,2]
[335729848,1724466649124,-1391.43,0.00013698,2]
[335729849,1724466649133,-689.03,0.00013698,2]
[335729850,1724466649143,-1412.65,0.00013698,2]
[335729851,1724466649152,-737.75,0.00013698,2]
[335729852,1724466649161,-500.0,0.00013698,2]
[335729853,1724466649171,-500.0,0.00013698,2]
[335729854,1724466649181,-389.45330612,0.00013698,2]
[335729855,1724466649190,-520.97451385,0.00013698,2]
[335729856,1724466649200,-1232.53,0.00013698,2]
[335729857,1724466649210,-500.0,0.00013698,2]
[335729858,1724466649220,-500.0,0.00013698,2]
[335729859,1724466649230,-901.65,0.00013698,2]
[335729860,1724466649240,-500.0,0.00013698,2]
[335729861,1724466649251,-500.0,0.00013698,2]
[335729862,1724466649261,-2945.52,0.00013698,2]
[335729863,1724466649270,-3165.38,0.00013698,2]
[335729864,1724466649280,-500.0,0.00013698,2]
[335729865,1724466649290,-500.0,0.00013698,2]
[335729866,1724466649300,-500.0,0.00013698,2]
[335729867,1724466649309,-14688.01,0.00013698,2]
[335729868,1724466649319,-500.0,0.00013698,2]
[335729869,1724466649329,-500.0,0.00013698,2]
[335729870,1724466649342,-1587.66,0.00013698,2]
[335729871,1724466649352,-2632.62,0.00013698,2]
[335729872,1724466649362,-500.0,0.00013698,2]
[335729873,1724466649372,-561.11,0.00013698,2]
[335729874,1724466649382,-500.0,0.00013698,2]
[335729875,1724466649394,-601.27,0.00013698,2]
[335729876,1724466649404,-2173.15,0.00013698,2]
[335729877,1724466649415,-1359.57,0.00013698,2]
[335729878,1724466649425,-500.0,0.00013698,2]
[335729879,1724466649435,-500.0,0.00013698,2]
[335729880,1724466649445,-500.0,0.00013698,2]
[335729881,1724466649454,-433.15344614,0.00013698,2]
[335729882,1724466649464,-500.0,0.00013698,2]
[335729883,1724466649473,-500.0,0.00013698,2]
[335729884,1724466649482,-1500.2,0.00013698,2]
[335729885,1724466649492,-5063.61,0.00013698,2]
[335729886,1724466649502,-500.0,0.00013698,2]
[335729887,1724466649510,-500.0,0.00013698,2]
[335729888,1724466649520,-500.0,0.00013698,2]
[335729889,1724466649530,-500.0,0.00013698,2]
[335729890,1724466649540,-2108.72,0.00013698,2]
[335729891,1724466649549,-2320.34,0.00013698,2]
[335729892,1724466649559,-723.2,0.00013698,2]
[335729893,1724466649569,-1128.16,0.00013698,2]
[335729894,1724466649579,-500.0,0.00013698,2]
[335729895,1724466649599,-500.0,0.00013698,2]
[335729896,1724466649608,-1618.54,0.00013698,2]
[335729897,1724466649618,-1707.88,0.00013698,2]
[335729898,1724466649627,-213.26385743,0.00013698,2]
[335729899,1724466649636,-1840.97,0.00013698,2]
[335729900,1724466649646,-691.55,0.00013698,2]
[335729901,1724466649655,-500.0,0.00013698,2]
[335729902,1724466649665,-500.0,0.00013698,2]
[335729903,1724466649675,-500.0,0.00013698,2]
[335729904,1724466649685,-500.0,0.00013698,2]
[335729905,1724466649694,-500.0,0.00013698,2]
[335729906,1724466649703,-500.0,0.00013698,2]
[335729907,1724466649714,-500.0,0.00013698,2]
[335729908,1724466649724,-1411.17,0.00013698,2]
[335729909,1724466649735,-1238.19,0.00013698,2]
[335729910,1724466649746,-742.86,0.00013698,2]
[335729911,1724466649756,-500.0,0.00013698,2]
[335729912,1724466649766,-806.92,0.00013698,2]
[335729913,1724466649776,-1157.37,0.00013698,2]
[335729914,1724466649786,-464.28113837,0.00013698,2]
[335729915,1724466649797,-2003.38,0.00013698,2]
[335729916,1724466649807,-500.0,0.00013698,2]
[335729917,1724466649817,-2833.51,0.00013698,2]
[335729918,1724466649827,-500.0,0.00013698,2]
[335729919,1724466649837,-500.0,0.00013698,2]
[335729920,1724466649848,-152.05856622,0.00013698,2]
[335729921,1724466649859,-500.0,0.00013698,2]
[335729922,1724466649869,-500.0,0.00013698,2]
[335729923,1724466649878,-2802.4171921,0.00013698,2]
[335729924,1724466650855,-474.25173268,0.00013698,2]
[335729925,1724466650868,-598.0205773,0.00013698,2]
[335729926,1724466650927,-15052.86049792,0.00013698,2]
[335729927,1724466650938,-501.60739766,0.00013698,2]
[335729928,1724466650950,-500.0,0.00013698,2]
[335729929,1724466650959,-13086.57,0.00013698,2]
[335729930,1724466650968,-1000.0,0.00013698,2]
[335729931,1724466650977,-500.0,0.00013698,2]
[335729932,1724466651153,-532.33252305,0.00013698,2]
[335729933,1724466651164,-811.25,0.00013698,2]
[335729934,1724466651175,-500.0,0.00013698,2]
[335729935,1724466651184,-500.0,0.00013698,2]
[335729936,1724466651193,-690.6,0.00013698,2]
[335729937,1724466651203,-1977.39,0.00013698,2]
[335729938,1724466651212,-501.47667113,0.00013698,2]
[335729939,1724466651222,-1294.37,0.00013698,2]
[335729940,1724466651233,-1846.7,0.00013698,2]
[335729941,1724466651245,-852.57,0.00013698,2]
[335729942,1724466651255,-500.0,0.00013698,2]
[335729943,1724466651264,-581.97,0.00013698,2]
[335729944,1724466651274,-500.0,0.00013698,2]
[335729945,1724466651285,-3289.72,0.00013698,2]
[335729946,1724466651296,-2151.26,0.00013698,2]
[335729947,1724466651307,-500.0,0.00013698,2]
[335729948,1724466651319,-502.53864449,0.00013698,2]
[335729949,1724466651329,-500.0,0.00013698,2]
[335729950,1724466651342,-3000.0,0.00013699,2]
[335729951,1724466651354,-2504.499866,0.00013699,2]
[335729952,1724466651364,-151.0,0.00013699,2]
[335729953,1724466651374,-151.0,0.00013699,2]
[335729954,1724466651384,-2134.705053,0.00013699,2]
[335729955,1724466651394,-2134.705053,0.00013699,2]
[335729956,1724466651404,-404.775623,0.00013699,2]
[335729957,1724466651416,-404.775623,0.00013699,2]
[335729958,1724466651431,-225.714086,0.00013699,2]
[335729959,1724466651441,-225.714086,0.00013699,2]
[335729960,1724466651453,-197.123887,0.00013699,2]
[335729961,1724466651464,-197.123887,0.00013699,2]
[335729962,1724466651474,-151.0,0.00013699,2]
[335729963,1724466651483,-448.489067,0.00013699,2]
[335729964,1724466651493,-151.0,0.00013699,2]
[335729965,1724466651502,-448.489067,0.00013699,2]
[335729966,1724466651512,-153.505588,0.00013699,2]
[335729967,1724466651521,-383.136542,0.00013699,2]
[335729968,1724466651531,-383.136542,0.00013699,2]
[335729969,1724466651541,-151.0,0.00013699,2]
[335729970,1724466651551,-151.0,0.00013699,2]
[335729971,1724466651562,-4829.569905,0.00013699,2]
[335729972,1724466651574,-153.0,0.00013699,2]
[335729973,1724466651584,-153.0,0.00013699,2]
[335729974,1724466651594,-153.0,0.00013699,2]
[335729975,1724466651603,-153.0,0.00013699,2]
[335729976,1724466651613,-153.0,0.00013699,2]
[335729977,1724466651622,-153.0,0.00013699,2]
[335729978,1724466651632,-153.0,0.00013699,2]
[335729979,1724466651642,-153.0,0.00013699,2]
[335729980,1724466651651,-153.0,0.00013699,2]
[335729981,1724466651661,-153.0,0.00013699,2]
[335729982,1724466651670,-153.0,0.00013699,2]
[335729983,1724466651679,-153.0,0.00013699,2]
[335729984,1724466651689,-153.0,0.00013699,2]
[335729985,1724466651698,-153.0,0.00013699,2]
[335729986,1724466651708,-153.0,0.00013699,2]
[335729987,1724466651720,-153.0,0.00013699,2]
[335729988,1724466651730,-153.0,0.00013699,2]
[335729989,1724466651741,-153.0,0.00013699,2]
[335729990,1724466651751,-153.0,0.00013699,2]
[335729991,1724466651761,-153.0,0.00013699,2]
[335729992,1724466651772,-153.0,0.00013699,2]
[335729993,1724466651781,-153.0,0.00013699,2]
[335729994,1724466651791,-153.0,0.00013699,2]
[335729995,1724466651801,-153.0,0.00013699,2]
[335729996,1724466651810,-153.0,0.00013699,2]
[335729997,1724466651820,-153.0,0.00013699,2]
[335729998,1724466651830,-153.0,0.00013699,2]
[335729999,1724466651840,-153.0,0.00013699,2]
[335730000,1724466651849,-1108.0550892,0.00013699,2]
[335730001,1724466651859,-1108.0550892,0.00013699,2]
[335730002,1724466651869,-1108.0550892,0.00013699,2]
[335730003,1724466651879,-1108.0550892,0.00013699,2]
[335730004,1724466651889,-1108.0550892,0.00013699,2]
[335730005,1724466651899,-1108.0550892,0.00013699,2]
[335730006,1724466651908,-1108.0550892,0.00013699,2]
[335730007,1724466651918,-1108.0550892,0.00013699,2]
[335730008,1724466651928,-1108.0550892,0.00013699,2]
[335730009,1724466651938,-1108.0550892,0.00013699,2]
[335730010,1724466651947,-1108.0550892,0.00013699,2]
[335730011,1724466651957,-1108.0550892,0.00013699,2]
[335730012,1724466651966,-1108.0550892,0.00013699,2]
[335730013,1724466651977,-1108.0550892,0.00013699,2]
[335730014,1724466651988,-1108.0550892,0.00013699,2]
[335730015,1724466651997,-1108.0550892,0.00013699,2]
[335730016,1724466652006,-1108.0550892,0.00013699,2]
[335730017,1724466652016,-1108.0550892,0.00013699,2]
[335730018,1724466652026,-1108.0550892,0.00013699,2]
[335730019,1724466652035,-1108.0550892,0.00013699,2]
[335730020,1724466652045,-1108.0550892,0.00013699,2]
[335730021,1724466652055,-1108.0550892,0.00013699,2]
[335730022,1724466652066,-1108.0550892,0.00013699,2]
[335730023,1724466652078,-1108.0550892,0.00013699,2]
[335730024,1724466652088,-1108.0550892,0.00013699,2]
[335730025,1724466652099,-194.91980144,0.00013699,2]
[335730026,1724466652111,-1040.786388,0.00013699,2]
[335730027,1724466652122,-1842.965096,0.00013699,2]
[335730028,1724466652133,-1040.786388,0.00013699,2]
[335730029,1724466652145,-1842.965096,0.00013699,2]
[335730030,1724466652155,-3473.52011,0.00013699,2]
[335730031,1724466652165,-3473.52011,0.00013699,2]
[335730032,1724466652174,-151.0,0.00013699,2]
[335730033,1724466652184,-950.259632,0.00013699,2]
[335730034,1724466652193,-950.259632,0.00013699,2]
[335730035,1724466652202,-203.559079,0.00013699,2]
[335730036,1724466652213,-203.559079,0.00013699,2]
[335730037,1724466652224,-3113.003741,0.00013699,2]
[335730038,1724466652235,-3113.003741,0.00013699,2]
[335730039,1724466652246,-150.112233,0.000137,2]
[335730040,1724466652257,-150.112233,0.000137,2]
[335730041,1724466652267,-150.112233,0.000137,2]
[335730042,1724466652278,-150.112233,0.000137,2]
[335730043,1724466652288,-150.112233,0.000137,2]
[335730044,1724466652298,-150.112233,0.000137,2]
[335730045,1724466652307,-150.112233,0.000137,2]
[335730046,1724466652317,-150.112233,0.000137,2]
[335730047,1724466652327,-150.112233,0.000137,2]
[335730048,1724466652337,-150.112233,0.000137,2]
[335730049,1724466652351,-151.0,0.00013701,2]
[335730050,1724466652362,-151.0,0.00013701,2]
[335730051,1724466652372,-151.0,0.00013701,2]
[335730052,1724466652383,-1386.043391,0.00013701,2]
[335730053,1724466652392,-1386.043391,0.00013701,2]
[335730054,1724466652402,-240.678103,0.00013701,2]
[335730055,1724466652413,-240.678103,0.00013701,2]
[335730056,1724466652426,-151.0,0.00013701,2]
[335730057,1724466652437,-770.534569,0.00013701,2]
[335730058,1724466652447,-770.534569,0.00013701,2]
[335730059,1724466652456,-296.87412,0.00013701,2]
[335730060,1724466652466,-1724.856854,0.00013701,2]
[335730061,1724466652475,-296.87412,0.00013701,2]
[335730062,1724466652485,-1724.856854,0.00013701,2]
[335730063,1724466652494,-151.0,0.00013701,2]
[335730064,1724466652503,-151.0,0.00013701,2]
[335730065,1724466652512,-261.313277,0.00013701,2]
[335730066,1724466652521,-261.313277,0.00013701,2]
[335730067,1724466652529,-153.0,0.00013701,2]
[335730068,1724466652539,-153.0,0.00013701,2]
[335730069,1724466652550,-153.0,0.00013701,2]
[335730070,1724466652560,-153.0,0.00013701,2]
[335730071,1724466652570,-153.0,0.00013701,2]
[335730072,1724466652580,-153.0,0.00013701,2]
[335730073,1724466652590,-153.0,0.00013701,2]
[335730074,1724466652599,-153.0,0.00013701,2]
[335730075,1724466652608,-153.0,0.00013701,2]
[335730076,1724466652619,-153.0,0.00013701,2]
[335730077,1724466652629,-153.0,0.00013701,2]
[335730078,1724466652641,-153.0,0.00013701,2]
[335730079,1724466652652,-153.0,0.00013701,2]
[335730080,1724466652663,-153.0,0.00013701,2]
[335730081,1724466652672,-153.0,0.00013701,2]
[335730082,1724466652681,-153.0,0.00013701,2]
[335730083,1724466652691,-153.0,0.00013701,2]
[335730084,1724466652700,-153.0,0.00013701,2]
[335730085,1724466652709,-153.0,0.00013701,2]
[335730086,1724466652719,-153.0,0.00013701,2]
[335730087,1724466652728,-153.0,0.00013701,2]
[335730088,1724466652737,-153.0,0.00013701,2]
[335730089,1724466652747,-153.0,0.00013701,2]
[335730090,1724466652755,-153.0,0.00013701,2]
[335730091,1724466652765,-153.0,0.00013701,2]
[335730092,1724466652774,-153.0,0.00013701,2]
[335730093,1724466652788,-153.0,0.00013701,2]
[335730094,1724466652797,-153.0,0.00013701,2]
[335730095,1724466652806,-153.0,0.00013701,2]
[335730096,1724466652815,-153.0,0.00013701,2]
[335730097,1724466652825,-153.0,0.00013701,2]
[335730098,1724466652834,-153.0,0.00013701,2]
[335730099,1724466652843,-153.0,0.00013701,2]
[335730100,1724466652852,-153.0,0.00013701,2]
[335730101,1724466652861,-153.0,0.00013701,2]
[335730102,1724466652870,-153.0,0.00013701,2]
[335730103,1724466652879,-153.0,0.00013701,2]
[335730104,1724466652888,-153.0,0.00013701,2]
[335730105,1724466652897,-153.0,0.00013701,2]
[335730106,1724466652906,-153.0,0.00013701,2]
[335730107,1724466652916,-153.0,0.00013701,2]
[335730108,1724466652926,-153.0,0.00013701,2]
[335730109,1724466652936,-153.0,0.00013701,2]
[335730110,1724466652947,-153.0,0.00013701,2]
[335730111,1724466652958,-153.0,0.00013701,2]
[335730112,1724466652967,-153.0,0.00013701,2]
[335730113,1724466652977,-153.0,0.00013701,2]
[335730114,1724466652987,-153.0,0.00013701,2]
[335730115,1724466652996,-153.0,0.00013701,2]
[335730116,1724466653005,-153.0,0.00013701,2]
[335730117,1724466653015,-153.0,0.00013701,2]
[335730118,1724466653024,-153.0,0.00013701,2]
[335730119,1724466653033,-153.0,0.00013701,2]
[335730120,1724466653042,-153.0,0.00013701,2]
[335730121,1724466653052,-153.0,0.00013701,2]
[335730122,1724466653062,-153.0,0.00013701,2]
[335730123,1724466653072,-153.0,0.00013701,2]
[335730124,1724466653082,-153.0,0.00013701,2]
[335730125,1724466653103,-153.0,0.00013701,2]
[335730126,1724466653112,-153.0,0.00013701,2]
[335730127,1724466653122,-153.0,0.00013701,2]
[335730128,1724466653131,-153.0,0.00013701,2]
[335730129,1724466653141,-153.0,0.00013701,2]
[335730130,1724466653150,-153.0,0.00013701,2]
[335730131,1724466653159,-153.0,0.00013701,2]
[335730132,1724466653169,-153.0,0.00013701,2]
[335730133,1724466653178,-153.0,0.00013701,2]
[335730134,1724466653188,-153.0,0.00013701,2]
[335730135,1724466653198,-153.0,0.00013701,2]
[335730136,1724466653207,-153.0,0.00013701,2]
[335730137,1724466653216,-153.0,0.00013701,2]
[335730138,1724466653225,-153.0,0.00013701,2]
[335730139,1724466653234,-153.0,0.00013701,2]
[335730140,1724466653244,-153.0,0.00013701,2]
[335730141,1724466653253,-153.0,0.00013701,2]
[335730142,1724466653262,-153.0,0.00013701,2]
[335730143,1724466653271,-153.0,0.00013701,2]
[335730144,1724466653280,-153.0,0.00013701,2]
[335730145,1724466653290,-153.0,0.00013701,2]
[335730146,1724466653299,-153.0,0.00013701,2]
[335730147,1724466653308,-153.0,0.00013701,2]
[335730148,1724466653318,-153.0,0.00013701,2]
[335730149,1724466653328,-153.0,0.00013701,2]
[335730150,1724466653338,-153.0,0.00013701,2]
[335730151,1724466653351,-153.0,0.00013701,2]
[335730152,1724466653359,-153.0,0.00013701,2]
[335730153,1724466653369,-153.0,0.00013701,2]
[335730154,1724466653378,-153.0,0.00013701,2]
[335730155,1724466653389,-153.0,0.00013701,2]
[335730156,1724466653398,-153.0,0.00013701,2]
[335730157,1724466653407,-414.0,0.0001377,2]
[335730158,1724466653418,-11894.16804779,0.00013772,2]
[335730159,1724466653431,-812.11503393,0.00013792,2]
[335730160,1724466653440,-150.112233,0.000138,2]
[335730161,1724466653451,-150.112233,0.000138,2]
[335730162,1724466653461,-150.112233,0.000138,2]
[335730163,1724466653470,-420.0,0.00013806,2]
[335730164,1724466653480,-150.112233,0.000139,2]
[335730165,1724466653490,-150.112233,0.000139,2]
[335730166,1724466653499,-150.112233,0.000139,2]
[335730167,1724466653508,-155.0,0.0001397,2]
[335730168,1724466653518,-160.57895429,0.00013971,2]
[335730169,1724466653527,-175.25067702,0.00013971,2]
[335730170,1724466653537,-500.0,0.00013972,2]
[335730171,1724466653547,-150.0,0.00013972,2]
[335730172,1724466653556,-500.0,0.00013972,2]
[335730173,1724466653566,-204.026499,0.00013972,2]
[335730174,1724466653576,-204.026499,0.00013972,2]
[335730175,1724466653588,-204.026499,0.00013972,2]
[335730176,1724466653599,-204.026499,0.00013972,2]
[335730177,1724466653610,-204.026499,0.00013972,2]
[335730178,1724466653620,-204.026499,0.00013972,2]
[335730179,1724466653632,-151.0,0.00013972,2]
[335730180,1724466653642,-151.0,0.00013972,2]
[335730181,1724466653653,-206.256484,0.00013972,2]
[335730182,1724466653664,-618.636103,0.00013972,2]
[335730183,1724466653674,-618.636103,0.00013972,2]
[335730184,1724466653684,-618.636103,0.00013972,2]
[335730185,1724466653694,-618.636103,0.00013972,2]
[335730186,1724466653704,-618.636103,0.00013972,2]
[335730187,1724466653713,-618.636103,0.00013972,2]
[335730188,1724466653724,-434.77802,0.00013972,2]
[335730189,1724466653733,-434.77802,0.00013972,2]
[335730190,1724466653743,-434.77802,0.00013972,2]
[335730191,1724466653886,-434.77802,0.00013972,2]
[335730192,1724466653897,-434.77802,0.00013972,2]
[335730193,1724466653908,-434.77802,0.00013972,2]
[335730194,1724466653919,-500.0,0.00013972,2]
[335730195,1724466653929,-504.19437505,0.00013972,2]
[335730196,1724466653940,-500.0,0.00013972,2]
[335730197,1724466653950,-500.0,0.00013972,2]
[335730198,1724466653960,-500.0,0.00013972,2]
[335730199,1724466653970,-500.0,0.00013972,2]
[335730200,1724466653980,-500.0,0.00013972,2]
[335730201,1724466653989,-500.0,0.00013972,2]
[335730202,1724466653999,-500.0,0.00013972,2]
[335730203,1724466654009,-151.0,0.00013972,2]
[335730204,1724466654019,-151.0,0.00013972,2]
[335730205,1724466654030,-151.0,0.00013972,2]
[335730206,1724466654040,-500.0,0.00013972,2]
[335730207,1724466654051,-500.0,0.00013972,2]
[335730208,1724466654060,-500.0,0.00013972,2]
[335730209,1724466654070,-198.403384,0.00013972,2]
[335730210,1724466654080,-198.403384,0.00013972,2]
[335730211,1724466654090,-575.31,0.00013972,2]
[335730212,1724466654099,-198.403384,0.00013972,2]
[335730213,1724466654110,-198.403384,0.00013972,2]
[335730214,1724466654122,-151.187678,0.00013972,2]
[335730215,1724466654132,-500.0,0.00013972,2]
[335730216,1724466654144,-500.0,0.00013972,2]
[335730217,1724466654156,-500.0,0.00013972,2]
[335730218,1724466654166,-151.0,0.00013972,2]
[335730219,1724466654176,-151.0,0.00013972,2]
[335730220,1724466654185,-500.0,0.00013972,2]
[335730221,1724466654195,-500.0,0.00013972,2]
[335730222,1724466654205,-500.0,0.00013972,2]
[335730223,1724466654214,-151.0,0.00013972,2]
[335730224,1724466654223,-151.0,0.00013972,2]
[335730225,1724466654232,-500.0,0.00013972,2]
[335730226,1724466654241,-500.0,0.00013972,2]
[335730227,1724466654251,-931.23,0.00013972,2]
[335730228,1724466654261,-1047.33,0.00013972,2]
[335730229,1724466654271,-500.0,0.00013972,2]
[335730230,1724466654280,-500.0,0.00013972,2]
[335730231,1724466654289,-502.96034577,0.00013972,2]
[335730232,1724466654298,-500.0,0.00013972,2]
[335730233,1724466654308,-500.0,0.00013972,2]
[335730234,1724466654317,-609.48,0.00013972,2]
[335730235,1724466654327,-500.0,0.00013972,2]
[335730236,1724466654339,-151.0,0.00013972,2]
[335730237,1724466654356,-500.0,0.00013972,2]